Workbook

Sheet Starting... (hidden)

Sheet Membership Summary Selection
B1: CME Group Clearing Membership - Membership Summary Form
B3: Thank you for your interest in CME Group Clearing Membership. You have selected the following clearing membership option(s) for review. If you would like to make any changes to your selection(s), please press the "Update" button below.
B8: CME | G8: Selected
B9: Clearing Membership
B11: CBOT | G11: Selected
B12: Clearing Membership
B14: NYMEX/COMEX | G14: Selected
B15: NYMEX Clearing Membership
B16: COMEX Clearing Membership

Sheet CMEG Seat and Share Prices
A1: CME Group Exchange Seat and Share Prices
A8: Current Date: | B8: =CMEG_Seat_and_Share_Prices[[#This Row],[Column2]] -> 2025-12-19
A9: Share Price Link | B9: http://investor.cmegroup.com/investor-relations/index.cfm
A11: CME Group Share Quote 1
A12: Description | C12: Quote | D12: Date | E12: Time
A13: CME Group Stock Quote | C13: =CMEG_Seat_and_Share_Prices[[#This Row],[Column3]] -> 266.03 | D13: =CMEG_Seat_and_Share_Prices[[#This Row],[Column4]] -> 2025-12-18 | E13: =CMEG_Seat_and_Share_Prices[[#This Row],[Column5]] -> 04:00 PM (EST)
A15: Seat Price Link | B15: http://www.cmegroup.com/company/membership/membership-and-lease-pricing.html
A17: CME Group Exchange Seat Prices - As of Date and Time 2
A18: Exchange | B18: Seat Prices as of: | D18: Lease Prices as of:
B19: Date | C19: Time | D19: Date | E19: Time
A20: CME | B20: =CMEG_Seat_and_Share_Prices[[#This Row],[Column2]] -> 2025-12-18 | C20: =CMEG_Seat_and_Share_Prices[[#This Row],[Column3]] -> 4:00 PM (CST) | D20: =CMEG_Seat_and_Share_Prices[[#This Row],[Column4]] -> 2025-12-18 | E20: =CMEG_Seat_and_Share_Prices[[#This Row],[Column5]] -> 4:00 PM (CST)
A21: CBOT | B21: =CMEG_Seat_and_Share_Prices[[#This Row],[Column2]] -> 2025-12-18 | C21: =CMEG_Seat_and_Share_Prices[[#This Row],[Column3]] -> 4:00 PM (CST) | D21: =CMEG_Seat_and_Share_Prices[[#This Row],[Column4]] -> 2025-12-18 | E21: =CMEG_Seat_and_Share_Prices[[#This Row],[Column5]] -> 4:00 PM (CST)
A22: NYMEX/COMEX | B22: =CMEG_Seat_and_Share_Prices[[#This Row],[Column2]] -> 2025-12-18 | C22: =CMEG_Seat_and_Share_Prices[[#This Row],[Column3]] -> 4:00 PM (CST) | D22: =CMEG_Seat_and_Share_Prices[[#This Row],[Column4]] -> 2025-12-18 | E22: =CMEG_Seat_and_Share_Prices[[#This Row],[Column5]] -> 4:00 PM (CST)
A24: CME Exchange Seat and Lease Prices 3 | H24: CME Last 5 New Lease Prices
A25: Division | B25: Bid | C25: Offer | D25: Last Sales Price | E25: Last Sales Date | F25: Monthly Lease Price | H25: CME | I25: IMM | J25: IOM
A26: CME | B26: =CMEG_Seat_and_Share_Prices[[#This Row],[Column2]] -> 375000 | C26: =CMEG_Seat_and_Share_Prices[[#This Row],[Column3]] -> 599000 | D26: =CMEG_Seat_and_Share_Prices[[#This Row],[Column4]] -> 380000 | E26: =CMEG_Seat_and_Share_Prices[[#This Row],[Column5]] -> 2025-12-08 | F26: =CMEG_Seat_and_Share_Prices[[#This Row],[Column6]] -> 2580 | H26: =CMEG_Seat_and_Share_Prices[[#This Row],[Column8]] -> 2600 | I26: =CMEG_Seat_and_Share_Prices[[#This Row],[Column9]] -> 800 | J26: =CMEG_Seat_and_Share_Prices[[#This Row],[Column10]] -> 250
A27: IMM | B27: =CMEG_Seat_and_Share_Prices[[#This Row],[Column2]] -> 110000 | C27: =CMEG_Seat_and_Share_Prices[[#This Row],[Column3]] -> 229500 | D27: =CMEG_Seat_and_Share_Prices[[#This Row],[Column4]] -> 126000 | E27: =CMEG_Seat_and_Share_Prices[[#This Row],[Column5]] -> 2025-12-04 | F27: =CMEG_Seat_and_Share_Prices[[#This Row],[Column6]] -> 820 | H27: =CMEG_Seat_and_Share_Prices[[#This Row],[Column8]] -> 2600 | I27: =CMEG_Seat_and_Share_Prices[[#This Row],[Column9]] -> 800 | J27: =CMEG_Seat_and_Share_Prices[[#This Row],[Column10]] -> 250
A28: IOM | B28: =CMEG_Seat_and_Share_Prices[[#This Row],[Column2]] -> 29000 | C28: =CMEG_Seat_and_Share_Prices[[#This Row],[Column3]] -> 40000 | D28: =CMEG_Seat_and_Share_Prices[[#This Row],[Column4]] -> 32500 | E28: =CMEG_Seat_and_Share_Prices[[#This Row],[Column5]] -> 2025-12-18 | F28: =CMEG_Seat_and_Share_Prices[[#This Row],[Column6]] -> 260 | H28: =CMEG_Seat_and_Share_Prices[[#This Row],[Column8]] -> 2600 | I28: =CMEG_Seat_and_Share_Prices[[#This Row],[Column9]] -> 800 | J28: =CMEG_Seat_and_Share_Prices[[#This Row],[Column10]] -> 250
A29: GEM | B29: =CMEG_Seat_and_Share_Prices[[#This Row],[Column2]] -> 3200 | C29: =CMEG_Seat_and_Share_Prices[[#This Row],[Column3]] -> 10000 | D29: =CMEG_Seat_and_Share_Prices[[#This Row],[Column4]] -> 4000 | E29: =CMEG_Seat_and_Share_Prices[[#This Row],[Column5]] -> 2025-11-25 | H29: =CMEG_Seat_and_Share_Prices[[#This Row],[Column8]] -> 2600 | I29: =CMEG_Seat_and_Share_Prices[[#This Row],[Column9]] -> 900 | J29: =CMEG_Seat_and_Share_Prices[[#This Row],[Column10]] -> 250
H30: =CMEG_Seat_and_Share_Prices[[#This Row],[Column8]] -> 2500 | I30: =CMEG_Seat_and_Share_Prices[[#This Row],[Column9]] -> 800 | J30: =CMEG_Seat_and_Share_Prices[[#This Row],[Column10]] -> 300
A31: CBOT Exchange Seat and Lease Prices 3 | H31: =AVERAGE(H26:H30) -> 2580 | I31: =AVERAGE(I26:I30) -> 820 | J31: =AVERAGE(J26:J30) -> 260
A32: Division | B32: Bid | C32: Offer | D32: Last Sales Price | E32: Last Sales Date | F32: Monthly Lease Price
A33: Full (B1) | B33: =CMEG_Seat_and_Share_Prices[[#This Row],[Column2]] -> 205500 | C33: =CMEG_Seat_and_Share_Prices[[#This Row],[Column3]] -> 297000 | D33: =CMEG_Seat_and_Share_Prices[[#This Row],[Column4]] -> 220000 | E33: =CMEG_Seat_and_Share_Prices[[#This Row],[Column5]] -> 2025-12-16 | F33: =CMEG_Seat_and_Share_Prices[[#This Row],[Column6]] -> 1661.74
A34: AM (B2) | B34: =CMEG_Seat_and_Share_Prices[[#This Row],[Column2]] -> 42000 | C34: =CMEG_Seat_and_Share_Prices[[#This Row],[Column3]] -> 65000 | D34: =CMEG_Seat_and_Share_Prices[[#This Row],[Column4]] -> 44000 | E34: =CMEG_Seat_and_Share_Prices[[#This Row],[Column5]] -> 2025-12-01 | F34: =CMEG_Seat_and_Share_Prices[[#This Row],[Column6]] -> 268.17
A35: IDEM (B4) | B35: =CMEG_Seat_and_Share_Prices[[#This Row],[Column2]] -> 1800 | C35: =CMEG_Seat_and_Share_Prices[[#This Row],[Column3]] -> 5000 | D35: =CMEG_Seat_and_Share_Prices[[#This Row],[Column4]] -> 2300 | E35: =CMEG_Seat_and_Share_Prices[[#This Row],[Column5]] -> 2025-11-04
A36: COM (B5) | B36: =CMEG_Seat_and_Share_Prices[[#This Row],[Column2]] -> 4000 | C36: =CMEG_Seat_and_Share_Prices[[#This Row],[Column3]] -> 4700 | D36: =CMEG_Seat_and_Share_Prices[[#This Row],[Column4]] -> 3300 | E36: =CMEG_Seat_and_Share_Prices[[#This Row],[Column5]] -> 2025-12-16
A38: NYMEX/COMEX Exchange Seat Prices
A39: Division | B39: Bid | C39: Offer | D39: Last Sales Price | E39: Last Sales Date
A40: NYMEX | B40: =CMEG_Seat_and_Share_Prices[[#This Row],[Column2]] -> 170000 | C40: =CMEG_Seat_and_Share_Prices[[#This Row],[Column3]] -> 210000 | D40: =CMEG_Seat_and_Share_Prices[[#This Row],[Column4]] -> 190000 | E40: =CMEG_Seat_and_Share_Prices[[#This Row],[Column5]] -> 2025-11-20
A41: COMEX | B41: =CMEG_Seat_and_Share_Prices[[#This Row],[Column2]] -> 70000 | C41: =CMEG_Seat_and_Share_Prices[[#This Row],[Column3]] -> 107000 | D41: =CMEG_Seat_and_Share_Prices[[#This Row],[Column4]] -> 91000 | E41: =CMEG_Seat_and_Share_Prices[[#This Row],[Column5]] -> 2025-12-02
A42: COMEX (Options Only) | B42: =CMEG_Seat_and_Share_Prices[[#This Row],[Column2]] -> 500 | C42: =CMEG_Seat_and_Share_Prices[[#This Row],[Column3]] -> 4000 | D42: =CMEG_Seat_and_Share_Prices[[#This Row],[Column4]] -> 4000 | E42: =CMEG_Seat_and_Share_Prices[[#This Row],[Column5]] -> 2025-06-26
A44: 1CME Group stock quote is based on prices as of the indicated date/time as listed on CME Group's website. Please note stock quotes may be delayed at least 20 minutes. For most current CME Group stock quote, please refer to www.investor.cmegroup.com/investor-relations/index.cfm. 2CME Group Exchange seat prices are based on the offer price as of the indicated date/time per CME Group's website. For a listing of most current and historical seat prices, please refer to www.cmegroup.com/company/membership/membership-and-lease-pricing.html. 3CME lease prices are based on the average of the five most recent "Reported Lease Information - New Leases" per CME Group's website. CBOT lease prices are based on the most recent "Month-End Rental Dollar Amount" per CME Group's website. For most current lease prices, please refer to http://www.cmegroup.com/company/membership/membership-and-lease-pricing.html.

Sheet Sheet1 (hidden)
A1: CME Group Exchange Seat and Share Prices | B1: Column2 | C1: Column3 | D1: Column4 | E1: Column5 | F1: Column6 | G1: Column7 | H1: Column8 | I1: Column9 | J1: Column10 | K1: Column11 | L1: Column12 | M1: Column13 | N1: Column14 | O1: Column15 | P1: Column16 | Q1: Column17 | R1: Column18 | S1: Column19 | T1: Column20 | U1: Column21 | V1: Column22 | W1: Column23 | X1: Column24 | Y1: Column25 | Z1: Column26 | AA1: Column27 | AB1: Column28 | AC1: Column29 | AD1: Column30 | AE1: Column31 | AF1: Column32 | AG1: Column33 | AH1: Column34 | AI1: Column35 | AJ1: Column36 | AK1: Column37 | AL1: Column38 | AM1: Column39 | AN1: Column40 | AO1: Column41 | AP1: Column42 | AQ1: Column43 | AR1: Column44 | AS1: Column45 | AT1: Column46 | AU1: Column47 | AV1: Column48 | AW1: Column49 | AX1: Column50 | AY1: Column51 | AZ1: Column52 | BA1: Column53 | BB1: Column54 | BC1: Column55 | BD1: Column56 | BE1: Column57 | BF1: Column58 | BG1: Column59 | BH1: Column60 | BI1: Column61 | BJ1: Column62 | BK1: Column63 | BL1: Column64 | BM1: Column65 | BN1: Column66 | BO1: Column67 | BP1: Column68 | BQ1: Column69 | BR1: Column70 | BS1: Column71 | BT1: Column72 | BU1: Column73 | BV1: Column74 | BW1: Column75 | BX1: Column76 | BY1: Column77 | BZ1: Column78 | CA1: Column79 | CB1: Column80 | CC1: Column81 | CD1: Column82 | CE1: Column83 | CF1: Column84 | CG1: Column85 | CH1: Column86 | CI1: Column87 | CJ1: Column88 | CK1: Column89 | CL1: Column90 | CM1: Column91 | CN1: Column92 | CO1: Column93 | CP1: Column94 | CQ1: Column95 | CR1: Column96 | CS1: Column97 | CT1: Column98 | CU1: Column99
A8: Current Date: | B8: 2025-12-19
A9: Share Price Link | B9: https://cmegroup.com/investor-relations.html
A11: CME Group Share Quote 1
A12: Description | C12: Quote | D12: Date | E12: Time
A13: CME Group Stock Quote | C13: 266.03 | D13: 2025-12-18 | E13: 04:00 PM (EST)
A15: Seat Price Link | B15: http://www.cmegroup.com/company/membership/membership-and-lease-pricing.html
A17: CME Group Exchange Seat Prices - As of Date and Time 2
A18: Exchange | B18: Seat Prices as of: | D18: Lease Prices as of:
B19: Date | C19: Time | D19: Date | E19: Time
A20: CME | B20: 2025-12-18 | C20: 4:00 PM (CST) | D20: 2025-12-18 | E20: 4:00 PM (CST)
A21: CBOT | B21: 2025-12-18 | C21: 4:00 PM (CST) | D21: 2025-12-18 | E21: 4:00 PM (CST)
A22: NYMEX/COMEX | B22: 2025-12-18 | C22: 4:00 PM (CST) | D22: 2025-12-18 | E22: 4:00 PM (CST)
A24: CME Exchange Seat and Lease Prices 3 | H24: CME Last 5 New Lease Prices
A25: Division | B25: Bid | C25: Offer | D25: Last Sales Price | E25: Last Sales Date | F25: Monthly Lease Price | H25: CME | I25: IMM | J25: IOM
A26: CME | B26: 375000 | C26: 599000 | D26: 380000 | E26: 45999 | F26: 2580 | H26: 2600 | I26: 800 | J26: 250
A27: IMM | B27: 110000 | C27: 229500 | D27: 126000 | E27: 45995 | F27: 820 | H27: 2600 | I27: 800 | J27: 250
A28: IOM | B28: 29000 | C28: 40000 | D28: 32500 | E28: 46009 | F28: 260 | H28: 2600 | I28: 800 | J28: 250
A29: GEM | B29: 3200 | C29: 10000 | D29: 4000 | E29: 45986 | H29: 2600 | I29: 900 | J29: 250
H30: 2500 | I30: 800 | J30: 300
A31: CBOT Exchange Seat and Lease Prices 3 | H31: 2580 | I31: 820 | J31: 260
A32: Division | B32: Bid | C32: Offer | D32: Last Sales Price | E32: Last Sales Date | F32: Monthly Lease Price
A33: Full (B1) | B33: 205500 | C33: 297000 | D33: 220000 | E33: 46007 | F33: 1661.74
A34: AM (B2) | B34: 42000 | C34: 65000 | D34: 44000 | E34: 45992 | F34: 268.17
A35: IDEM (B4) | B35: 1800 | C35: 5000 | D35: 2300 | E35: 45965
A36: COM (B5) | B36: 4000 | C36: 4700 | D36: 3300 | E36: 46007
A38: NYMEX/COMEX Exchange Seat Prices
A39: Division | B39: Bid | C39: Offer | D39: Last Sales Price | E39: Last Sales Date
A40: NYMEX | B40: 170000 | C40: 210000 | D40: 190000 | E40: 45981
A41: COMEX | B41: 70000 | C41: 107000 | D41: 91000 | E41: 45993
A42: COMEX (Options Only) | B42: 500 | C42: 4000 | D42: 4000 | E42: 45834
B43: 3200 | C43: 10000 | D43: 4000 | E43: 45986
A44: 1CME Group stock quote is based on prices as of the indicated date/time as listed on CME Group's website. Please note stock quotes may be delayed at least 20 minutes. For most current CME Group stock quote, please refer to www.investor.cmegroup.com/investor-relations/index.cfm. 2CME Group Exchange seat prices are based on the offer price as of the indicated date/time per CME Group's website. For a listing of most current and historical seat prices, please refer to www.cmegroup.com/company/membership/membership-and-lease-pricing.html. 3CME lease prices are based on the average of the five most recent "Reported Lease Information - New Leases" per CME Group's website. CBOT lease prices are based on the most recent "Month-End Rental Dollar Amount" per CME Group's website. For most current lease prices, please refer to http://www.cmegroup.com/company/membership/membership-and-lease-pricing.html.

Sheet CME Clearing Member
B1: CME Clearing Member Firm Membership
B2: Seat and Share Cost Estimates as of 1: | E2: ='CMEG Seat and Share Prices'!B8 -> 2025-12-19
B14: Seat Cost 2
B15: Seat Division | C15: Quantity | D15: Offer Price | E15: Seat Cost
B16: CME | C16: 2 | D16: ='CMEG Seat and Share Prices'!C26 -> 599000 | E16: =C16*D16 -> 1198000
B17: IMM | C17: 2 | D17: ='CMEG Seat and Share Prices'!C27 -> 229500 | E17: =D17*C17 -> 459000
B18: IOM | C18: 2 | D18: ='CMEG Seat and Share Prices'!C28 -> 40000 | E18: =D18*C18 -> 80000
B19: GEM | C19: 1 | D19: ='CMEG Seat and Share Prices'!C29 -> 10000 | E19: =D19*C19 -> 10000
B20: Total Cost for CME Clearing Membership: | E20: =SUM(E16:E19) -> 1747000
B23: Additional requirements to receive equity member rates on proprietary trading:
B25: Share Cost
B26: Type of Shares | C26: Quantity | D26: Stock Price | E26: Share Cost
B27: CME Group | C27: 20000 | D27: ='CMEG Seat and Share Prices'!C13 -> 266.03 | E27: =ROUND(D27,0)*C27 -> 5320000
B30: OPTION 1 - Purchase Seats and Shares
B31: Total Seat Cost | E31: =+E20 -> 1747000
B32: Total Share Cost | E32: =E27 -> 5320000
B33: Total Cost for CME Clearing Membership + Equity Member Rates: | E33: =SUM(E31:E32) -> 7067000
B36: OPTION 2 - Purchase Seats Plus Monthly Subscription Rate 3
B37: Total Seat Cost | E37: =E20 -> 1747000
B38: Total Monthly Equity Member Subscription Rate Program (EMSRP) | E38: 12500
B40: 1 Seat and share prices provided are based on prices obtained from CME Group's website as of a specified date/time. For specific information on seat and share prices, please refer to CME Seat and Share Prices link below:
B42: CME Seat and Share Prices
B43: 2 Seat cost does not include applicable membership transfer fees. Refer to Application and Transfer Fee Schedule tab for additional details.
B44: 3 For further information on the Subscription Rate Program, please refer to the following link:
B45: www.cmegroup.com/subscriptionrateprogram

Sheet CBOT Clearing Member
B1: CBOT Clearing Member Firm Membership
B2: Seat and Share Cost Estimates as of 1: | E2: ='CMEG Seat and Share Prices'!B8 -> 2025-12-19
B14: Clearing FCM:
B16: Seat Cost 2
B17: Seat Division | C17: Quantity | D17: Offer Price | E17: Seat Cost
B18: Full | C18: 2 | D18: ='CMEG Seat and Share Prices'!C33 -> 297000 | E18: =D18*C18 -> 594000
B19: Total Cost for CBOT Clearing FCM Membership: | E19: =E18 -> 594000
B22: Clearing Non-FCM:
B24: Seat Cost 1
B25: Seat Division | C25: Quantity | D25: Offer Price | E25: Seat Cost
B26: Full | C26: 1 | D26: ='CMEG Seat and Share Prices'!C33 -> 297000 | E26: =D26*C26 -> 297000
B27: Total Cost for CBOT Clearing Non-FCM Membership: | E27: =E26 -> 297000
B30: Additional requirements to receive equity member rates on proprietary trading:
B32: Share Cost
B33: Type of Shares | C33: Quantity | D33: Stock Price | E33: Share Cost
B34: CME Group | C34: =20000 -> 20000 | D34: ='CMEG Seat and Share Prices'!C13 -> 266.03 | E34: =ROUND(D34,0)*C34 -> 5320000
B37: OPTION 1: Purchase Seat(s) and Shares 2
B38: Total Seat Cost (FCM) | E38: =E19 -> 594000
B39: Total Share Cost | E39: =E34 -> 5320000
B40: Total Cost for CBOT Clearing FCM Membership + Equity Member Rates: | E40: =SUM(E38:E39) -> 5914000
B42: Total Seat Cost (Non-FCM) | E42: =E26 -> 297000
B43: Total Share Cost | E43: =E34 -> 5320000
B44: Total Cost for CBOT Clearing Non-FCM Membership + Equity Member Rates: | E44: =SUM(E42:E43) -> 5617000
B47: OPTION 2 - Purchase Seat(s) Plus Monthly Subscription Rate 3
B48: Total Seat Cost (FCM) | E48: =E19 -> 594000
B49: Total Monthly Equity Member Subscription Rate Program (EMSRP) | E49: 12500
B51: Total Seat Cost (Non-FCM) | E51: =E27 -> 297000
B52: Total Monthly Equity Member Subscription Rate Program (EMSRP) | E52: 12500
B55: 1 Seat and share prices provided are based on prices obtained from CME Group's website as of a specified date/time. For specific information on seat and share prices, please refer to CME Seat and Share Prices link below:
B57: CBOT Seat and Share Prices
B58: 2 Seat cost does not include applicable membership transfer fees. Refer to Application and Transfer Fee Schedule tab for additional details.
B59: 3 For further information on the Subscription Rate Program, please refer to the following link:
B60: www.cmegroup.com/subscriptionrateprogram

Sheet NYMEX Clearing Member
B1: NYMEX Clearing Member Firm Membership
B2: Seat and Share Cost Estimates as of 1: | E2: ='CMEG Seat and Share Prices'!B8 -> 2025-12-19
B14: Seat Cost 2
B15: Seat Division | C15: Quantity | D15: Offer Price | E15: Seat Cost
B16: NYMEX | C16: 2 | D16: ='CMEG Seat and Share Prices'!C40 -> 210000 | E16: =D16*C16 -> 420000
B17: Total Cost for NYMEX Clearing Membership: | E17: =E16 -> 420000
B20: Share Cost
B21: Type of Shares | C21: Quantity | D21: Stock Price | E21: Share Cost
B22: CME Group | C22: 20000 | D22: ='CMEG Seat and Share Prices'!C13 -> 266.03 | E22: =ROUND(D22,0)*C22 -> 5320000
B25: Additional requirements to receive equity member rates on proprietary trading:
B27: OPTION 1: Purchase Seats and Shares
B28: Total Seat Cost | E28: =E16 -> 420000
B29: Total Share Cost | E29: =E22 -> 5320000
B30: Total Cost for NYMEX Clearing Membership + Equity Member Rates: | E30: =SUM(E28:E29) -> 5740000
B33: OPTION 2: Purchase Seats Plus Monthly Subscription Rate 3
B34: Total Seat Cost | E34: =E16 -> 420000
B35: Total Monthly Equity Member Subscription Rate | E35: 12500
B38: 1 Seat and share prices provided are based on prices obtained from CME Group's website as of a specified date/time. For specific information on seat and share prices, please refer to NYMEX/COMEX Seat and Share Prices link below:
B40: NYMEX/COMEX Seat and Share Prices
B41: 2 Seat cost does not include applicable membership transfer fees. Refer to Application and Transfer Fee Schedule tab for additional details.
B42: 3 For further information on the Subscription Rate Program, please refer to the following link:
B43: www.cmegroup.com/subscriptionrateprogram

Sheet COMEX Clearing Member
B1: COMEX Clearing Member Firm Membership
B2: Seat Cost Estimates as of 1: | E2: ='CMEG Seat and Share Prices'!B8 -> 2025-12-19
B9: Seat Cost 2
B10: Seat Division | C10: Quantity | D10: Offer Price | E10: Seat Cost
B11: COMEX Full | C11: 2 | D11: ='CMEG Seat and Share Prices'!C41 -> 107000 | E11: =C11*D11 -> 214000
B12: Total Cost for COMEX Clearing Membership: | E12: =E11 -> 214000
B15: 1 Seat prices provided are based on prices obtained from CME Group's website as of a specified date/time. For specific information on seat prices, please refer to NYMEX/COMEX Seat and Share Prices link below:
B17: NYMEX/COMEX Seat and Share Prices
B18: 2 Seat cost does not include applicable membership transfer fees. Refer to Application and Transfer Fee Schedule tab for additional details.

Sheet CMEG App. and Transfer Fees
B1: CME Group Application and Transfer Fee Schedule
B3: CME Exchange
B4: Clearing Membership Type | C4: Application Fee 1, 2 | D4: Additional Transfer Fee 3 | E4: Total Fee
B5: CME Clearing Member Firm | C5: 2000 | D5: 1800 | E5: 3800
B7: CBOT Exchange
B8: Clearing Membership Type | C8: Application Fee 1, 2 | D8: Additional Transfer Fee 3 | E8: Total Fee
B9: CBOT Clearing FCM Member Firm | C9: 2000 | D9: 300 | E9: 2300
B10: CBOT Clearing Non-FCM Member Firm | C10: 2000 | D10: 0 | E10: 2000
B12: NYMEX/COMEX Exchange
B13: Clearing Membership Type | C13: Application Fee 1, 2 | D13: Additional Transfer Fee 3 | E13: Total Fee
B14: NYMEX Clearing Member Firm | C14: 2000 | D14: 300 | E14: 2300
B15: COMEX Clearing Member Firm | C15: 2000 | D15: 300 | E15: 2300
B17: 1 The Application fee includes the Transfer Fee for one of the required seats purchased by the applicant. 2 If applicant is applying for more than one exchange or if the applicant is a current member firm, the initial Application Fee is reduced from $2,000 to $1,000 for each additional exchange applied for. 3 The Additional Transfer Fee is only applicable to additional memberships purchased by the member firm. Each additional seat required by the applicant will be charged an additional $300 transfer fee.
